fUSD/lending_fUSD_20250227
["ID","MTS","AMOUNT","RATE_DAILY","PERIOD"]
[354726216,1740646247578,-500.0,0.0005863,120]
[354726219,1740646247587,-500.0,0.0005863,120]
[354726220,1740646247597,-582.28871184,0.0005863,120]
[354726222,1740646247607,-500.0,0.0005863,120]
[354726225,1740646247616,-500.0,0.0005863,120]
[354726227,1740646247626,-500.0,0.0005863,120]
[354726228,1740646247635,-500.0,0.0005863,120]
[354726230,1740646247645,-500.0,0.0005863,120]
[354726232,1740646247654,-1509.91,0.0005863,120]
[354726234,1740646247663,-500.0,0.0005863,120]
[354726236,1740646247672,-500.0,0.0005863,120]
[354726238,1740646247682,-500.0,0.0005863,120]
[354726240,1740646247691,-3141.62,0.0005863,120]
[354726242,1740646247701,-500.0,0.0005863,120]
[354726244,1740646247710,-3998.01,0.0005863,120]
[354726246,1740646247720,-415.17992169,0.0005863,120]
[354726248,1740646247729,-317.08,0.0005863,120]
[354726250,1740646247739,-500.0,0.0005863,120]
[354726252,1740646247751,-289.86,0.0005863,120]
[354726254,1740646247761,-500.0,0.0005863,120]
[354726256,1740646247771,-564.94,0.0005863,120]
[354726259,1740646247783,-500.0,0.0005863,120]
[354726260,1740646247793,-500.0,0.0005863,120]
[354726262,1740646247802,-8819.58,0.0005863,120]
[354726264,1740646247811,-500.0,0.0005863,120]
[354726266,1740646247822,-500.3467163,0.0005863,120]
[354726268,1740646247832,-1253.2,0.0005863,120]
[354726270,1740646247842,-993.48,0.0005863,120]
[354726272,1740646247852,-687.5,0.0005863,120]
[354726274,1740646247861,-500.0,0.0005863,120]
[354726276,1740646247870,-500.0,0.0005863,120]
[354726278,1740646247880,-500.0,0.0005863,120]
[354726280,1740646247889,-3689.57,0.0005863,120]
[354726282,1740646247898,-1018.45828553,0.00058831,120]
[354726284,1740646247907,-500.0,0.00058904,120]
[354726286,1740646247917,-833.9,0.00058904,120]
[354726288,1740646247926,-500.0,0.00058904,120]
[354726290,1740646247935,-500.0,0.00058904,120]
[354726292,1740646247945,-3134.84,0.00058904,120]
[354726294,1740646247954,-502.98,0.00058904,120]
[354726296,1740646247963,-4166.66,0.00058904,120]
[354726298,1740646247972,-728.81,0.00058904,120]
[354726300,1740646247981,-278.17302335,0.00058904,120]
[354726302,1740646247990,-500.0,0.00058904,120]
[354726304,1740646247999,-500.0,0.00058904,120]
[354726306,1740646248009,-358.61,0.00058904,120]
[354726308,1740646248018,-500.0,0.00058904,120]
[354726310,1740646248027,-500.0,0.00058904,120]
[354726312,1740646248037,-544.41942309,0.00058904,120]
[354726314,1740646248046,-1509.91,0.00058904,120]
[354726315,1740646248055,-500.0,0.00058904,120]
[354726317,1740646248064,-221.20505678,0.00058904,120]
[354726319,1740646248074,-500.0,0.00058904,120]
[354726321,1740646248083,-3141.62,0.00058904,120]
[354726323,1740646248092,-415.28,0.00058904,120]
[354726325,1740646248103,-3998.01,0.00058904,120]
[354726327,1740646248112,-500.0,0.00058904,120]
[354726329,1740646248121,-500.0,0.00058904,120]
[354726331,1740646248130,-647.43,0.00058904,120]
[354726333,1740646248139,-163.43,0.00058904,120]
[354726335,1740646248148,-8819.58,0.00058904,120]
[354726337,1740646248158,-546.34,0.00058904,120]
[354726339,1740646248167,-1253.2,0.00058904,120]
[354726341,1740646248176,-993.48,0.00058904,120]
[354726343,1740646248185,-687.5,0.00058904,120]
[354726345,1740646248195,-286.04811303,0.00058904,120]
[354726347,1740646248205,-500.0,0.00058904,120]
[354726349,1740646248215,-500.0,0.00058904,120]
[354726351,1740646248225,-3689.57,0.00058904,120]
[354726353,1740646248235,-5243.20348676,0.00058927,2]
[354726355,1740646248243,-156.79378864,0.00058927,2]
[354726357,1740646248253,-512.3079664,0.00058927,2]
[354726359,1740646248262,-700.0,0.0005897,30]
[354726361,1740646248272,-3045.74502782,0.0005897,30]
[354726363,1740646248282,-700.0,0.0005898,30]
[354726365,1740646248291,-700.0,0.0005899,30]
[354726367,1740646248300,-2002.0,0.00059,2]
[354726369,1740646248310,-57230.56538603,0.00059,120]
[354726371,1740646248319,-1000000.0,0.00059,120]
[354726373,1740646248328,-500.0,0.00059,120]
[354726375,1740646248336,-500.0,0.00059,120]
[354726377,1740646248345,-500.0,0.00059,120]
[354726379,1740646248354,-500.0,0.00059,120]
[354726381,1740646248363,-122582.70538722,0.00059,120]
[354726382,1740646248373,-958211.37266707,0.00059,120]
[354726391,1740646248441,-2391.6329385,0.00059,120]
[354726394,1740646248457,-289.953,0.00059,120]
[354726404,1740646248553,-5.76729232,0.00059,120]
[354726413,1740646248636,-39101.27410211,0.00059,120]
[354726415,1740646248645,-241.78840426,0.00059,2]
[354726417,1740646248654,-161.19226951,0.00059,2]
[354726419,1740646248663,-151.0,0.00059,120]
[354726421,1740646248674,-205.620536,0.00059,120]
[354726423,1740646248683,-205.620536,0.00059,120]
[354726425,1740646248693,-205.620536,0.00059,120]
[354726427,1740646248702,-205.620536,0.00059,120]
[354726429,1740646248712,-205.620536,0.00059,120]
[354726431,1740646248721,-205.620536,0.00059,120]
[354726433,1740646248730,-151.0,0.00059,120]
[354726435,1740646248740,-151.0,0.00059,120]
[354726437,1740646248750,-195.024602,0.00059,120]
[354726439,1740646248761,-151.0,0.00059,120]
[354726441,1740646248771,-151.0,0.00059,120]
[354726443,1740646248782,-151.0,0.00059,120]
[354726445,1740646248792,-203.85,0.00059,120]
[354726447,1740646248801,-151.0,0.00059,120]
[354726449,1740646248811,-151.0,0.00059,120]
[354726451,1740646248820,-151.0,0.00059,120]
[354726453,1740646248830,-151.0,0.00059,120]
[354726455,1740646248840,-151.0,0.00059,120]
[354726457,1740646248850,-151.0,0.00059,120]
[354726459,1740646248859,-337.459539,0.00059,120]
[354726461,1740646248869,-337.459539,0.00059,120]
[354726463,1740646248877,-337.459539,0.00059,120]
[354726465,1740646248886,-337.459539,0.00059,120]
[354726467,1740646248896,-337.459539,0.00059,120]
[354726469,1740646248905,-337.459539,0.00059,120]
[354726471,1740646248915,-151.0,0.00059,120]
[354726473,1740646248925,-272.065318,0.00059,120]
[354726475,1740646248934,-349.0,0.00059105,60]
[354726477,1740646248943,-500.0,0.00059178,120]
[354726479,1740646248953,-833.9,0.00059178,120]
[354726481,1740646248962,-500.0,0.00059178,120]
[354726483,1740646248972,-500.0,0.00059178,120]
[354726485,1740646248981,-3134.84,0.00059178,120]
[354726487,1740646248990,-502.98,0.00059178,120]
[354726489,1740646249000,-4166.66,0.00059178,120]
[354726490,1740646249009,-728.81,0.00059178,120]
[354726492,1740646249018,-500.0,0.00059178,120]
[354726494,1740646249027,-500.0,0.00059178,120]
[354726496,1740646249037,-500.33530001,0.00059178,120]
[354726498,1740646249046,-500.0,0.00059178,120]
[354726500,1740646249055,-1509.91,0.00059178,120]
[354726502,1740646249065,-500.0,0.00059178,120]
[354726504,1740646249075,-500.0,0.00059178,120]
[354726506,1740646249085,-3141.62,0.00059178,120]
[354726508,1740646249095,-3998.01,0.00059178,120]
[354726510,1740646249105,-500.0,0.00059178,120]
[354726512,1740646249115,-500.0,0.00059178,120]
[354726514,1740646249124,-8819.58,0.00059178,120]
[354726516,1740646249133,-1253.2,0.00059178,120]
[354726518,1740646249143,-993.48,0.00059178,120]
[354726520,1740646249152,-687.5,0.00059178,120]
[354726522,1740646249162,-452.42,0.00059178,120]
[354726524,1740646249171,-595.31,0.00059178,120]
[354726526,1740646249180,-3689.57,0.00059178,120]
[354726528,1740646249190,-11312.81141877,0.000592,120]
[354726531,1740646249211,-2057.42300028,0.000592,120]
[354726592,1740646249896,-9028.83169202,0.000592,120]
[354726593,1740646249944,-468.0,0.00055,25]
[354726595,1740646249954,-3155.99015309,0.000592,120]
[354726597,1740646249964,-1917.79316788,0.000592,120]
[354726599,1740646249975,-5001.25253156,0.000592,120]
[354726602,1740646249990,-2613.09465312,0.000592,120]
[354726604,1740646250001,-1711.55778895,0.000592,120]
[354727946,1740646479366,151.0,0.00045,120]
[354727947,1740646479941,151.0,0.00046959,120]
[354727948,1740646480505,151.0,0.00048904,120]
[354727949,1740646699571,350.0,0.00045,120]
[354727950,1740646701445,151.0,0.00045,120]
[354727951,1740646702012,151.0,0.00047068,120]
[354727952,1740646702573,151.0,0.00049123,120]
[354727953,1740646703488,1732126.0,0.00049,5]
[354727954,1740646746710,100000.0,0.000493,5]
[354727957,1740647120662,1000.0,0.00028144,120]
[354727958,1740647251696,2034.69771111,0.00049,8]
[354727961,1740647431525,-155.88,0.00026849,2]
[354727962,1740647431535,-140.07831041,0.00027497,2]
[354727963,1740647431546,-9.92168959,0.00027497,2]
[354727964,1740647431555,-2029.88435016,0.00028144,3]
[354727965,1740647431565,-145.72903358,0.00029534,2]
[354727966,1740647431578,-4.27096642,0.00029534,2]
[354727967,1740647431587,-150.0,0.00029534,2]
[354727968,1740647431595,-155.88,0.00032646,2]
[354727969,1740647431605,-155.88,0.00038443,2]
[354727970,1740647431614,-159.35,0.00040084,2]
[354727971,1740647431623,-155.88,0.00044239,2]
[354727972,1740647431632,-150.0,0.00047252,2]
[354727973,1740647431641,-154.25,0.00047279,2]
[354727974,1740647431651,-1000.0,0.0004928,2]
[354727975,1740647431660,-500.0,0.000499,2]
[354727976,1740647431669,-154.13805979,0.000499,15]
[354727977,1740647431678,-675.59745095,0.000499,15]
[354727978,1740647431687,-276.53,0.000499,10]
[354727979,1740647431696,-150.99,0.000499,2]
[354727980,1740647431705,-4803.57,0.000499,2]
[354727981,1740647431714,-201.13836433,0.000499,11]
[354727982,1740647431724,-512.30796642,0.000499,2]
[354727983,1740647431733,-316.32484563,0.000499,2]
[354727984,1740647431742,-732.41375284,0.000499,22]
[354727985,1740647431751,-5243.20348676,0.000499,2]
[354727986,1740647431760,-156.79378864,0.00049936,2]
[354727987,1740647431769,-154.25,0.00049967,2]
[354727988,1740647431779,-700.0,0.0004997,30]
[354727989,1740647431789,-700.0,0.0004998,30]
[354727990,1740647431798,-255.0,0.00049989,9]
[354727991,1740647431807,-700.0,0.0004999,30]
[354727992,1740647431817,-170.89734822,0.0004999,7]
[354727993,1740647431826,-152.03,0.0004999,120]
[354727994,1740647431835,-152.03,0.0004999,120]
[354727995,1740647431844,-152.03,0.0004999,120]
[354727996,1740647431852,-152.03,0.0004999,120]
[354727997,1740647431862,-152.03,0.0004999,120]
[354727998,1740647431871,-152.03,0.0004999,120]
[354727999,1740647431880,-152.03,0.0004999,120]
[354728000,1740647431890,-152.03,0.0004999,120]
[354728001,1740647431899,-152.03,0.0004999,120]
[354728002,1740647431909,-152.03,0.0004999,120]
[354728003,1740647432038,-152.03,0.0004999,120]
[354728004,1740647432048,-152.03,0.0004999,120]
[354728005,1740647432058,-152.03,0.0004999,120]
[354728006,1740647432068,-152.03,0.0004999,120]
[354728007,1740647432077,-152.03,0.0004999,120]
[354728008,1740647432086,-152.03,0.0004999,120]
[354728009,1740647432096,-152.03,0.0004999,120]
[354728010,1740647432105,-152.03,0.0004999,120]
[354728011,1740647432114,-152.03,0.0004999,120]
[354728012,1740647432123,-152.03,0.0004999,120]
[354728013,1740647432133,-152.03,0.0004999,120]
[354728014,1740647432143,-152.03,0.0004999,120]
[354728015,1740647432152,-152.03,0.0004999,120]
[354728016,1740647432161,-152.03,0.0004999,120]
[354728017,1740647432170,-152.03,0.0004999,120]
[354728019,1740647432179,-152.03,0.0004999,120]
[354728020,1740647432193,-152.03,0.0004999,120]
[354728021,1740647432202,-152.03,0.0004999,120]
[354728022,1740647432212,-152.03,0.0004999,120]
[354728023,1740647432223,-152.03,0.0004999,120]
[354728024,1740647432233,-152.03,0.0004999,120]
[354728025,1740647432244,-152.03,0.0004999,120]
[354728026,1740647432255,-152.03,0.0004999,120]
[354728027,1740647432265,-152.03,0.0004999,120]
[354728028,1740647432274,-152.03,0.0004999,120]
[354728029,1740647432283,-152.03,0.0004999,120]
[354728030,1740647432293,-152.03,0.0004999,120]
[354728031,1740647432303,-152.03,0.0004999,120]
[354728032,1740647432313,-152.03,0.0004999,120]
[354728033,1740647432323,-152.03,0.0004999,120]
[354728034,1740647432334,-192.01921502,0.00049999,120]
[354728035,1740647432345,-500.0,0.00049999,120]
[354728036,1740647432355,-447.060047,0.00049999,120]
[354728037,1740647432365,-500.0,0.00049999,120]
[354728038,1740647432374,-152.0,0.0005,7]
[354728039,1740647432383,-63091.7014747,0.0005,120]
[354728040,1740647432400,-42097.73069236,0.0005,120]
[354728041,1740647432411,-29154.20090426,0.0005,120]
[354728042,1740647432422,-2235.54614608,0.0005,120]
[354728043,1740647437686,-19711.18211172,0.0005,120]
[354728044,1740647437698,-725.89771,0.0005,120]
[354728045,1740647437739,-842983.74096088,0.0005,120]
[354728046,1740647437748,-1000000.0,0.0005,120]
[354728047,1740647437758,-1000000.0,0.0005,120]
[354728048,1740647437767,-1578834.0,0.0005,120]
[354728049,1740647437777,-151.0,0.0005,120]
[354728050,1740647437787,-151.0,0.0005,120]
[354728051,1740647437796,-151.0,0.0005,120]
[354728052,1740647437806,-151.0,0.0005,120]
[354728053,1740647437815,-151.0,0.0005,120]
[354728054,1740647437824,-151.0,0.0005,120]
[354728055,1740647437834,-151.0,0.0005,120]
[354728056,1740647437844,-151.0,0.0005,120]
[354728058,1740647437853,-155.88,0.00050036,2]
[354728060,1740647437862,-500.0,0.00050273,120]
[354728062,1740647437871,-150.0,0.00050312,7]
[354728064,1740647437881,-675.59745091,0.00050511,15]
[354728066,1740647437890,-500.0,0.00050547,120]
[354728068,1740647437899,-150.0,0.000509,84]
[354728070,1740647437909,-675.59745091,0.00051122,15]
[354728072,1740647437919,-151.0,0.00051178,120]
[354728074,1740647437928,-675.59745091,0.00051733,15]
[354728076,1740647437938,-675.59745091,0.00052344,15]
[354728078,1740647437947,-154.25,0.00052655,2]
[354728080,1740647437956,-675.59745091,0.00052956,15]
[354728082,1740647437966,-151.0,0.00053233,120]
[354728084,1740647437975,-300.0,0.000535,15]
[354728086,1740647437984,-300.0,0.000535,15]
[354728088,1740647437994,-300.0,0.000535,15]
[354728090,1740647438003,-300.0,0.000535,15]
[354728092,1740647438013,-585.16984655,0.000535,15]
[354728094,1740647438022,-675.59745091,0.00053567,15]
[354728096,1740647438031,-675.59745091,0.00054178,15]
[354728098,1740647438040,-5243.20348676,0.00054403,2]
[354728100,1740647438049,-512.3079664,0.00054453,2]
[354728102,1740647438059,-675.59745091,0.00054789,15]
[354728103,1740647438068,-755.866,0.00054898,104]
[354728105,1740647438078,-29540.90304666,0.00054899,30]
[354728107,1740647438087,-151.0,0.000549,120]
[354728109,1740647438096,-191.385268,0.000549,120]
[354728111,1740647438105,-191.385268,0.000549,120]
[354728113,1740647438115,-151.0,0.000549,30]
[354728115,1740647438124,-151.0,0.000549,120]
[354728117,1740647438133,-151.0,0.000549,120]
[354728119,1740647438143,-151.0,0.000549,120]
[354728121,1740647438152,-151.0,0.000549,120]
[354728123,1740647438162,-151.0,0.000549,120]
[354728125,1740647438172,-151.0,0.000549,120]
[354728127,1740647438182,-151.0,0.000549,120]
[354728129,1740647438195,-151.0,0.000549,120]
[354728131,1740647438204,-151.0,0.000549,120]
[354728133,1740647438213,-151.0,0.000549,120]
[354728135,1740647438222,-151.0,0.000549,120]
[354728137,1740647438234,-151.0,0.000549,120]
[354728139,1740647438243,-151.0,0.000549,120]
[354728141,1740647438253,-152.118834,0.000549,120]
[354728142,1740647438263,-151.0,0.000549,120]
[354728144,1740647438273,-151.0,0.000549,120]
[354728146,1740647438283,-151.0,0.000549,120]
[354728148,1740647438292,-151.0,0.000549,120]
[354728150,1740647438300,-151.0,0.000549,120]
[354728151,1740647438309,-156.79378864,0.00054918,2]
[354728152,1740647438320,-152.03,0.0005499,120]
[354728153,1740647438329,-152.03,0.0005499,120]
[354728154,1740647438338,-152.03,0.0005499,120]
[354728155,1740647438347,-152.03,0.0005499,120]
[354728156,1740647438356,-152.03,0.0005499,120]
[354728157,1740647438364,-152.03,0.0005499,120]
[354728158,1740647438374,-152.03,0.0005499,120]
[354728159,1740647438383,-152.03,0.0005499,120]
[354728160,1740647438391,-152.03,0.0005499,120]
[354728161,1740647438400,-152.03,0.0005499,120]
[354728162,1740647438409,-152.03,0.0005499,120]
[354728163,1740647438418,-152.03,0.0005499,120]
[354728164,1740647438427,-152.03,0.0005499,120]
[354728165,1740647438437,-58830.12281025,0.00055,120]
[354728166,1740647438446,-814818.242,0.00055,120]
[354728167,1740647438455,-151.0,0.00055,120]
[354728168,1740647438464,-191.385268,0.00055,120]
[354728169,1740647438473,-191.385268,0.00055,120]
[354728171,1740647438482,-151.0,0.00055,120]
[354728173,1740647438491,-193.362182,0.00055,30]
[354728175,1740647438500,-151.0,0.00055,120]
[354728177,1740647438510,-151.0,0.00055,120]
[354728179,1740647438519,-151.0,0.00055,120]
[354728181,1740647438528,-151.0,0.00055,120]
[354728183,1740647438537,-284.765448,0.00055,120]
[354728185,1740647438546,-151.0,0.00055,120]
[354728187,1740647438555,-151.0,0.00055,120]
[354728189,1740647438564,-151.0,0.00055,120]
[354728191,1740647438578,-151.0,0.00055,120]
[354728193,1740647438587,-287.645605,0.00055,120]
[354728195,1740647438596,-236.221677,0.00055,120]
[354728197,1740647438605,-236.221677,0.00055,120]
[354728199,1740647438615,-151.812572,0.00055,120]
[354728201,1740647438624,-151.0,0.00055,120]
[354728203,1740647438635,-151.0,0.00055,120]
[354728205,1740647438644,-151.0,0.00055,120]
[354728207,1740647438652,-151.0,0.00055,120]
[354728209,1740647438662,-151.0,0.00055,120]
[354728211,1740647438671,-151.0,0.00055,120]
[354728213,1740647438680,-207.154708,0.00055,120]
[354728215,1740647438691,-151.0,0.00055,120]
[354728217,1740647438700,-151.0,0.00055288,120]
[354728219,1740647438710,-154.25,0.00055344,2]
[354728221,1740647438719,-154.13805979,0.000554,15]
[354728223,1740647438728,-675.59745091,0.000554,15]
[354728225,1740647438737,-1000.0,0.0005544,120]
[354728227,1740647438746,-152.03,0.0005549,120]
[354728229,1740647438756,-152.03,0.0005549,120]
[354728231,1740647438765,-152.03,0.0005549,120]
[354728233,1740647438774,-152.03,0.0005549,120]
[354728235,1740647438783,-152.03,0.0005549,120]
[354728237,1740647438793,-152.03,0.0005549,120]
[354728239,1740647438802,-152.03,0.0005549,120]
[354728241,1740647438812,-152.03,0.0005549,120]
[354728243,1740647438823,-1000000.0,0.000555,120]
[354728245,1740647438832,-151.0,0.000555,120]
[354728247,1740647438841,-191.385268,0.000555,120]
[354728249,1740647438850,-191.385268,0.000555,120]
[354728251,1740647438859,-151.0,0.000555,120]
[354728253,1740647438868,-151.0,0.000555,120]
[354728255,1740647438877,-151.0,0.000555,120]
[354728257,1740647438887,-151.0,0.000555,120]
[354728259,1740647438896,-151.0,0.000555,120]
[354728261,1740647438905,-151.0,0.000555,120]
[354728263,1740647438915,-236.221677,0.000555,120]
[354728264,1740647438924,-151.0,0.000555,120]
[354728266,1740647438932,-151.0,0.000555,120]
[354728268,1740647438941,-151.0,0.000555,120]
[354728270,1740647438951,-151.0,0.000555,120]
[354728272,1740647438960,-151.0,0.000555,120]
[354728275,1740647438971,-151.0,0.000555,120]
[354728277,1740647438981,-4000.0,0.00055624,30]
[354728278,1740647438990,-155.88,0.00055833,120]
[354728280,1740647438999,-1000000.0,0.00056,120]
[354728282,1740647439008,-191.385268,0.00056,120]
[354728284,1740647439018,-191.385268,0.00056,120]
[354728286,1740647439027,-151.0,0.00056,120]
[354728288,1740647439036,-151.0,0.00056,120]
[354728290,1740647439046,-151.0,0.00056,120]
[354728292,1740647439056,-151.0,0.00056,120]
[354728294,1740647439066,-151.0,0.00056,120]
[354728296,1740647439079,-151.0,0.00056,120]
[354728298,1740647439089,-236.221677,0.00056,120]
[354728300,1740647439099,-151.0,0.00056,120]
[354728302,1740647439110,-151.0,0.00056,120]
[354728304,1740647439120,-151.0,0.00056,120]
[354728306,1740647439130,-151.0,0.00056,120]
[354728308,1740647439140,-151.0,0.00056,120]
[354728310,1740647439151,-184.47639409,0.00056485,65]
[354728312,1740647439162,-521808.93114247,0.000565,120]
[354728361,1740647439622,-483.74,0.000565,120]
[354728363,1740647439635,-303.80976314,0.000565,120]
[354728391,1740647439885,-1365.98036101,0.000565,120]
[354728393,1740647439896,-1799.65,0.000565,120]
[354728689,1740647442602,-3642.80871804,0.000565,120]
[354728704,1740647442705,-1750.94117633,0.000565,120]
[354728786,1740647443460,-2801.80489333,0.000565,120]
[354728789,1740647443472,-4728.5,0.000565,120]
[354728791,1740647443483,-2420.9,0.000565,120]
[354729032,1740647445706,-299.34994113,0.000565,120]
[354729037,1740647445753,-180226.99999998,0.000565,120]
[354729040,1740647445764,-126630.15693766,0.000565,120]
[354729042,1740647445775,-1824.46081173,0.000565,120]
[354729852,1740647541822,155.24178872,0.0002,120]
[354729853,1740647587981,2002.0,0.0002,120]
[354729854,1740648317963,201.48099837,0.000414,9]
[354729855,1740648333343,490.0,0.0002499,30]
[354729856,1740648333819,490.0,0.0002498,30]
[354729857,1740648334274,490.0,0.0002497,30]
[354729858,1740648385845,151.0,0.00045,120]
[354729859,1740648386404,151.0,0.0004726,120]
[354729860,1740648422519,4723.63859827,0.00041,14]
[354729861,1740648425972,3289.50187177,0.00045222,10]
[354729862,1740648446953,727.13857629,0.00031278,30]
[354729863,1740648448384,625.78029305,0.00031278,30]
[354729864,1740648488878,2917.99081793,9.9e-05,2]
[354729865,1740648488909,1821.83622931,9.9e-05,2]
[354729866,1740648488936,2700.10173922,9.9e-05,2]
[354729867,1740648488964,4171.48037981,9.9e-05,2]
[354729868,1740648488990,1303.6168597,9.9e-05,2]
[354729869,1740648506402,150.0,0.0002569,7]
[354729870,1740648516479,201.36678702,0.000384,8]
[354729871,1740648519511,257.87582249,0.00028,60]
[354729879,1740648573841,343.0,0.0002499,30]
[354729880,1740648574294,343.0,0.0002498,30]
[354729881,1740648574765,343.0,0.0002497,30]
[354729885,1740648591312,15754.34101134,0.0004,6]
[354729891,1740648631703,-300.0,0.00014899,2]
[354729892,1740648631713,-170.79286561,0.000149,2]
[354729893,1740648631722,-175.39742005,0.000149,2]
[354729894,1740648631731,-341.53864428,0.000149,2]
[354729895,1740648631740,-150.0,0.00014949,2]
[354729896,1740648631750,-151.33,0.0001499,2]
[354729897,1740648631760,-151.33,0.0001499,2]
[354729898,1740648631769,-151.33,0.0001499,2]
[354729899,1740648631778,-29.56441506,0.0001499,2]
[354729900,1740648631790,-121.76558494,0.0001499,2]
[354729901,1740648631799,-151.33,0.0001499,2]
[354729902,1740648631810,-151.33,0.0001499,2]
[354729903,1740648631819,-151.33,0.0001499,2]
[354729904,1740648631829,-151.33,0.0001499,2]
[354729905,1740648631839,-151.33,0.0001499,2]
[354729906,1740648631849,-151.33,0.0001499,2]
[354729907,1740648631859,-151.33,0.0001499,2]
[354729908,1740648631871,-151.33,0.0001499,2]
[354729909,1740648631881,-151.33,0.0001499,2]
[354729910,1740648631891,-151.33,0.0001499,2]
[354729911,1740648631902,-151.33,0.0001499,2]
[354729912,1740648631911,-151.33,0.0001499,2]
[354729913,1740648631921,-151.33,0.0001499,2]
[354729914,1740648631933,-151.33,0.0001499,2]
[354729915,1740648631943,-151.33,0.0001499,2]
[354729916,1740648631952,-151.33,0.0001499,2]
[354729917,1740648631961,-151.33,0.0001499,2]
[354729918,1740648631970,-151.33,0.0001499,2]
[354729919,1740648631979,-151.33,0.0001499,2]
[354729920,1740648631988,-151.33,0.0001499,2]
[354729921,1740648631997,-151.33,0.0001499,2]
[354729922,1740648632007,-151.33,0.0001499,2]
[354729923,1740648632016,-151.33,0.0001499,2]
[354729924,1740648632025,-151.33,0.0001499,2]
[354729925,1740648632034,-151.33,0.0001499,2]
[354729926,1740648632043,-151.33,0.0001499,2]
[354729927,1740648632052,-104.34235382,0.0001499,2]
[354729928,1740648632064,-46.98764618,0.0001499,2]
[354729929,1740648632074,-151.33,0.0001499,2]
[354729930,1740648632083,-151.33,0.0001499,2]
[354729931,1740648632093,-246.23258252,0.0001499,2]
[354729932,1740648632102,-246.23258252,0.0001499,2]
[354729933,1740648632111,-246.23258252,0.0001499,2]
[354729934,1740648632121,-150.0,0.00014998,2]
[354729935,1740648632131,-500.0,0.00014999,2]
[354729937,1740648632141,-135.93460641,0.00014999,2]
[354729939,1740648632153,-496.82515305,0.00014999,2]
[354729941,1740648632162,-488.06786594,0.00014999,2]
[354729943,1740648632172,-306.30698101,0.00014999,2]
[354729945,1740648632184,-182.48111806,0.00014999,2]
[354729947,1740648632193,-492.27589477,0.00014999,2]
[354729950,1740648632203,-500.0,0.00014999,2]
[354729951,1740648632212,-500.0,0.00014999,2]
[354729952,1740648632221,-500.0,0.00014999,2]
[354729953,1740648632231,-500.0,0.00014999,2]
[354729954,1740648632240,-500.0,0.00014999,2]
[354729955,1740648632250,-500.0,0.00014999,2]
[354729956,1740648632259,-327.43393984,0.00014999,2]
[354729957,1740648632268,-306.61480414,0.00014999,2]
[354729958,1740648632278,-23005.50859586,0.00015,2]
[354729961,1740648637862,-9452443.22300337,0.00015,2]
[354729962,1740648637871,-2139920.85489613,0.00015,2]
[354730153,1740648639933,-663.38,0.00015,2]